fUST/lending_fUST_20250813
["ID","MTS","AMOUNT","RATE_DAILY","PERIOD"]
[378927221,1755071433738,-774.98094888,0.00022987,2]
[378927222,1755071433748,-774.98094888,0.00022987,2]
[378927223,1755071433758,-774.98094888,0.00022987,2]
[378927224,1755071433768,-774.98094888,0.00022987,2]
[378927225,1755071433778,-774.98094888,0.00022987,2]
[378927226,1755071433788,-774.98094888,0.00022987,2]
[378927227,1755071433798,-774.98094888,0.00022987,2]
[378927228,1755071433812,-774.98094888,0.00022987,2]
[378927229,1755071433826,-774.98094888,0.00022987,2]
[378927230,1755071433840,-946.29252708,0.00022987,2]
[378927231,1755071433858,-946.29252708,0.00022987,2]
[378927232,1755071433868,-946.29252708,0.00022987,2]
[378927233,1755071433878,-100000.0,0.0002299,2]
[378927234,1755071433888,-500.0,0.00022999,5]
[378927235,1755071433898,-683.07,0.00023,2]
[378927236,1755071433908,-193.116734,0.00023,7]
[378927237,1755071433917,-12120.09,0.00023,7]
[378927238,1755071433927,-160.0,0.00023,7]
[378927239,1755071433936,-215.55264861,0.00023,7]
[378927240,1755071433946,-160.0,0.00023,2]
[378927241,1755071433956,-417.15472785,0.00023,7]
[378927242,1755071433965,-528.09767282,0.00023,7]
[378927243,1755071433975,-463.83371396,0.00023048,2]
[378927244,1755071433985,-212.5,0.00023064,3]
[378927245,1755071433995,-972.0,0.00023099,2]
[378927246,1755071434004,-2151.0,0.00023099,2]
[378927247,1755071434014,-636.0,0.00023099,2]
[378927248,1755071434023,-500.113186,0.00023113,7]
[378927249,1755071434032,-500.113186,0.00023113,7]
[378927250,1755071434041,-193.116734,0.00023164,7]
[378927251,1755071434051,-151.0,0.00023225,7]
[378927252,1755071434062,-500.0,0.00023314,2]
[378927253,1755071434071,-500.0,0.00023314,2]
[378927254,1755071434080,-500.0,0.00023314,2]
[378927255,1755071434090,-500.0,0.00023314,2]
[378927256,1755071434099,-500.0,0.00023314,2]
[378927257,1755071434108,-365.402,0.00023344,3]
[378927258,1755071434118,-500.0,0.00023359,2]
[378927259,1755071434128,-200.0,0.00023365,20]
[378927260,1755071434138,-200.0,0.00023365,20]
[378927261,1755071434147,-200.0,0.00023365,20]
[378927262,1755071434157,-200.0,0.00023365,20]
[378927263,1755071434167,-200.0,0.00023365,20]
[378927264,1755071434177,-200.0,0.00023365,20]
[378927265,1755071434186,-200.0,0.00023365,20]
[378927266,1755071434196,-200.0,0.00023365,20]
[378927267,1755071434207,-200.0,0.00023365,20]
[378927268,1755071434217,-200.0,0.00023365,20]
[378927269,1755071434226,-350.0,0.00023365,20]
[378927270,1755071434235,-500.0,0.0002337,2]
[378927271,1755071434245,-500.0,0.0002337,2]
[378927272,1755071434254,-191.41607794,0.00023409,7]
[378927273,1755071434268,-1.70065606,0.00023409,7]
[378927274,1755071434278,-193.116734,0.00023409,7]
[378927275,1755071434287,-151.0,0.00023409,7]
[378927276,1755071434297,-142.34180994,0.00023409,7]
[378927277,1755071434309,-357.77137606,0.00023409,7]
[378927278,1755071434318,-52.68488202,0.00023409,7]
[378927279,1755071434330,-408.2465363,0.00023409,7]
[378927280,1755071434341,-39.18176768,0.00023409,7]
[378927281,1755071434351,-500.113186,0.00023409,7]
[378927282,1755071434361,-500.113186,0.00023409,7]
[378927283,1755071434371,-33611.19266643,0.00023409,2]
[378927284,1755071434380,-360.0,0.00023496,2]
[378927285,1755071434390,-1500.0,0.00023518,2]
[378927286,1755071434400,-1000.0,0.00023521,2]
[378927287,1755071434409,-633.47499148,0.00023521,2]
[378927288,1755071434419,-500.95457017,0.00023521,2]
[378927289,1755071434429,-592.10698436,0.00023521,2]
[378927290,1755071434438,-1000.0,0.00023521,2]
[378927291,1755071434447,-1000.0,0.00023521,2]
[378927292,1755071434457,-1000.0,0.00023521,2]
[378927293,1755071434466,-379.86376,0.00023521,7]
[378927294,1755071434475,-379.86376,0.00023521,7]
[378927295,1755071434490,-151.0,0.00023521,7]
[378927296,1755071434500,-307.58065212,0.00023547,5]
[378927356,1755071438613,-192.41934788,0.00023547,5]
[378927358,1755071438624,-288.21781324,0.00023627,2]
[378927360,1755071438634,-4084.07582689,0.00023627,2]
[378927362,1755071438644,-193.116734,0.00023627,7]
[378927364,1755071438654,-500.113186,0.00023627,7]
[378927366,1755071438664,-500.113186,0.00023627,7]
[378927368,1755071438674,-1600.0,0.00023659,2]
[378927370,1755071438684,-137.01447904,0.00023738,4]
[378927466,1755071443153,-339.71875326,0.00019078,2]
[378927474,1755071443216,-1105.87894433,0.00019078,2]
[378927476,1755071443226,-614.76,0.00023,2]
[378927478,1755071443235,-408.0,0.00023099,2]
[378927480,1755071443245,-417.652,0.00023099,2]
[378927482,1755071443255,-75.48552096,0.00023738,4]
[378927484,1755071443265,-200.0,0.0002374,8]
[378927486,1755071443275,-463.83371396,0.00023794,2]
[378927488,1755071443284,-501.26504243,0.00023862,2]
[378927490,1755071443294,-501.39074947,0.00023862,2]
[378927493,1755071443303,-1000.0,0.00023862,2]
[378927495,1755071443314,-1000.0,0.00023862,2]
[378927497,1755071443323,-1000.0,0.00023862,2]
[378927499,1755071443333,-3593.4222665,0.000239,2]
[378927501,1755071443345,-131.86442015,0.000239,2]
[378927503,1755071443355,-1000.0,0.00023907,2]
[378927505,1755071443365,-500.0,0.0002391,9]
[378927507,1755071443374,-500.0,0.0002391,9]
[378927509,1755071443384,-1000.0,0.00023918,2]
[378927511,1755071443394,-1000.0,0.00023918,2]
[378927513,1755071443404,-500.0,0.00023973,2]
[378927515,1755071443413,-500.0,0.00023973,2]
[378927518,1755071443425,-500.0,0.00023973,2]
[378927520,1755071443435,-500.54877542,0.00023973,2]
[378927522,1755071443444,-193.116734,0.0002399,7]
[378927524,1755071443453,-201.331948,0.0002399,7]
[378927526,1755071443464,-151.0,0.0002399,7]
[378927528,1755071443473,-500.113186,0.0002399,7]
[378927530,1755071443483,-500.113186,0.0002399,7]
[378927532,1755071443493,-151.0,0.0002399,7]
[378927534,1755071443502,-151.0,0.0002399,7]
[378927536,1755071443512,-160.0,0.00024,7]
[378927538,1755071443522,-216.72950928,0.00024,7]
[378927540,1755071443531,-160.0,0.00024,7]
[378927542,1755071443540,-843.29866057,0.00024,7]
[378927544,1755071443549,-232.03317797,0.00024,7]
[378927546,1755071443558,-160.0,0.00024,7]
[378927548,1755071443568,-160.0,0.00024,7]
[378927550,1755071443578,-739.51985181,0.00024021,2]
[378927552,1755071443589,-460.0,0.00024044,2]
[378927554,1755071443599,-193.116738,0.00024055,7]
[378927556,1755071443608,-501.33549503,0.00024068,2]
[378927558,1755071443617,-502.84634204,0.00024068,2]
[378927817,1755071446344,-1445.59769756,0.000205,2]
[378927819,1755071446354,-997.15365796,0.00024068,2]
[378927821,1755071446364,-1500.0,0.00024068,2]
[378927823,1755071446373,-1500.0,0.00024068,2]
[378927825,1755071446383,-500.0,0.00024095,5]
[378927827,1755071446392,-136.55310848,0.0002435,2]
[378927830,1755071446407,-3588.73357817,0.0002435,2]
[378927832,1755071446417,-500.113186,0.0002438,7]
[378927834,1755071446426,-348.86191371,0.0002438,7]
[378927839,1755071446463,-151.25127229,0.0002438,7]
[378927841,1755071446472,-1345.24251378,0.0002441,2]
[378927843,1755071446484,-154.75748622,0.0002441,2]
[378927845,1755071446494,-1500.0,0.0002441,2]
[378927847,1755071446503,-1500.0,0.0002441,2]
[378927849,1755071446512,-212.5,0.00024411,4]
[378927851,1755071446522,-1500.0,0.00024455,2]
[378927853,1755071446531,-752.0939338,0.00024466,2]
[378927855,1755071446540,-280.5417504,0.00024466,2]
[378935413,1755071717058,1000.15,0.00026,120]
[378935414,1755071783189,500.0,0.00026,120]
[378935415,1755071795673,5456.0,0.00026,120]
[378935416,1755071815711,500.1,0.00026,120]
[378935465,1755072632391,-565.0428521,0.00019799,2]
[378935467,1755072632401,-898.0,0.00019899,2]
[378935469,1755072632411,-300.0,0.00019899,2]
[378935471,1755072632421,-30243.94606832,0.000199,2]
[378935473,1755072632431,-160.0,0.0002,3]
[378935475,1755072632440,-175.601804,0.00020181,2]
[378935477,1755072632450,-200.0,0.00020297,20]
[378935479,1755072632460,-200.0,0.00020297,20]
[378935481,1755072632470,-200.0,0.00020297,20]
[378935483,1755072632480,-200.0,0.00020297,20]
[378935485,1755072632490,-200.0,0.00020297,20]
[378935487,1755072632500,-200.0,0.00020297,20]
[378935489,1755072632510,-200.0,0.00020297,20]
[378935491,1755072632519,-200.0,0.00020297,20]
[378935493,1755072632530,-417.15472785,0.00020796,2]
[378935495,1755072632540,-4634.03037183,0.00020796,2]
[378935497,1755072632552,-898.48,0.00020796,2]
[378935499,1755072632564,-1247.31331951,0.00020796,2]
[378935642,1755072638927,-4617.20126453,0.00020796,2]
[378939860,1755072926268,1000.13,0.00026,120]
[378939861,1755073111190,3487.90643019,0.00017757,2]
[378939862,1755073111212,7816.56975403,0.00017757,2]
[378939864,1755073387291,200.0,0.0001784,2]
[378939868,1755073502442,200.0,0.00023,30]
[378939879,1755073610009,33049.65790224,0.00026,120]
[378939977,1755073838403,-500.0,0.00017857,2]
[378939978,1755073838413,-500.0,0.00017857,2]
[378939979,1755073838423,-500.0,0.00018329,2]
[378939980,1755073838432,-779.9706903,0.00018916,2]
[378939981,1755073838441,-500.0,0.00019294,2]
[378939982,1755073838451,-175.601804,0.00019863,2]
[378939983,1755073838460,-300.0,0.00019899,2]
[378939984,1755073838470,-1032.78625761,0.000199,2]
[378939985,1755073838484,-10956.58623176,0.000199,2]
[378940091,1755073846478,-17246.44204361,0.000199,2]
[378940092,1755073846487,-160.0,0.0002,3]
[378940093,1755073846497,-200.0,0.00020297,20]
[378940094,1755073846507,-200.0,0.00020297,20]
[378940095,1755073846516,-200.0,0.00020297,20]
[378940096,1755073846527,-200.0,0.00020297,20]
[378940097,1755073846538,-200.0,0.00020297,20]
[378940098,1755073846547,-200.0,0.00020297,20]
[378940099,1755073846558,-200.0,0.00020297,20]
[378940100,1755073846568,-200.0,0.00020297,20]
[378940102,1755073846577,-500.0,0.0002031,2]
[378940104,1755073846587,-160.0,0.00020772,2]
[378940106,1755073846596,-160.0,0.00020772,2]
[378940108,1755073846605,-160.0,0.00020772,2]
[378940109,1755073846625,-215.55264861,0.00020772,2]
[378940110,1755073846635,-843.29866057,0.00020772,2]
[378940111,1755073846646,-391.01686009,0.00020772,2]
[378940112,1755073904254,155.108358,0.00023,30]
[378940125,1755074505984,155.108358,0.00023,30]
[378940130,1755074813060,201.0,0.00025999,120]
[378940326,1755075032561,-300.0,0.00019899,2]
[378940328,1755075032571,-300.0,0.00019899,2]
[378940331,1755075032580,-53.3,0.0002,3]
[378940643,1755075040499,-3737.21578898,0.000199,2]
[378940979,1755075043771,-1042.09551609,0.000199,2]
[378941245,1755075046610,-2948.42076,0.000199,2]
[378941257,1755075046716,-8845.68902425,0.000199,2]
[378944444,1755076232856,-201.44419,0.00018249,2]
[378944446,1755076232866,-500.0,0.00018287,2]
[378944448,1755076232876,-300.0,0.00018898,2]
[378944450,1755076232885,-198.55581,0.00018898,2]
[378944453,1755076232909,-101.44419,0.00018898,2]
[378944455,1755076232918,-300.0,0.00018898,2]
[378944457,1755076232927,-300.0,0.00018898,2]
[378944459,1755076232936,-225.34906709,0.00018898,2]
[378944744,1755076239007,-74.65093291,0.00018898,2]
[378944746,1755076239017,-300.0,0.00018898,2]
[378944748,1755076239027,-1200.0,0.00018898,2]
[378944750,1755076239036,-200.0,0.00018899,10]
[378944752,1755076239045,-200.0,0.00018899,10]
[378944754,1755076239055,-200.0,0.00018899,10]
[378944756,1755076239065,-200.0,0.00018899,10]
[378944758,1755076239074,-200.0,0.00018899,10]
[378944760,1755076239084,-11589.9273783,0.00018899,2]
[378944762,1755076239093,-500.0,0.00019249,2]
[378944764,1755076239102,-774.83733515,0.00019274,2]
[378944766,1755076239111,-200.0,0.00019274,20]
[378944768,1755076239120,-200.0,0.00019274,20]
[378944770,1755076239130,-200.0,0.00019274,20]
[378944772,1755076239139,-200.0,0.00019274,20]
[378944774,1755076239149,-200.0,0.00019274,20]
[378944776,1755076239159,-200.0,0.00019274,20]
[378944778,1755076239168,-28954.12422277,0.000199,2]
[378944780,1755076239177,-1944.97427784,0.000199,2]
[378944782,1755076239186,-106.7,0.0002,3]
[378944784,1755076239196,-160.0,0.0002,3]
[378944786,1755076239206,-459.93330802,0.0002008,2]
[378944788,1755076239218,-500.0,0.00020262,2]
[378944790,1755076239228,-420.0,0.00020601,2]
[378944792,1755076239237,-160.0,0.00020732,2]
[378944794,1755076239246,-160.0,0.00020732,2]
[378944796,1755076239256,-232.03317797,0.00020732,2]
[378944798,1755076239267,-160.0,0.00020732,2]
[378944799,1755076239280,-216.72950928,0.00020732,2]
[378944801,1755076239290,-417.15472785,0.00020732,2]
[378944804,1755076239301,-160.0,0.00020732,2]
[378944806,1755076239314,-160.0,0.00020732,2]
[378944807,1755076239324,-160.0,0.00020732,2]
[378944810,1755076239334,-528.09767282,0.00020772,2]
[378944812,1755076239347,-843.29866057,0.00020772,2]
[378944814,1755076239357,-215.55264861,0.00020772,2]
[378944816,1755076239367,-151.0,0.00020772,2]
[378944833,1755076239540,-151.0,0.00020772,2]
[378944835,1755076239550,-207.23886,0.00020772,2]
[378944837,1755076239565,-151.0,0.00020772,2]
[378944839,1755076239578,-151.0,0.00020772,2]
[378944841,1755076239590,-151.0,0.00020772,2]
[378944843,1755076239601,-151.0,0.00020772,2]
[378944844,1755076239613,-222.766115,0.00020772,2]
[378944846,1755076239625,-172.405371,0.00020772,2]
[378944848,1755076239636,-172.405371,0.00020772,2]
[378944849,1755076239647,-151.0,0.00020772,2]
[378944851,1755076239659,-151.0,0.00020772,2]
[378944853,1755076239670,-151.0,0.00020772,2]
[378944855,1755076239682,-151.0,0.00020772,2]
[378944857,1755076239693,-151.0,0.00020772,2]
[378944858,1755076239704,-151.0,0.00020772,2]
[378944859,1755076239715,-151.0,0.00020772,2]
[378944860,1755076239728,-151.0,0.00020772,2]
[378944861,1755076239739,-151.0,0.00020772,2]
[378944862,1755076239750,-151.0,0.00020772,2]
[378944863,1755076239760,-500.0,0.00020772,2]
[378944864,1755076239771,-144.79200727,0.00020783,2]
[378944865,1755076239845,-355.20799273,0.00020783,2]
[378944866,1755076239856,-500.0,0.00020783,2]
[378944867,1755076239866,-500.0,0.00020783,2]
[378944868,1755076239876,-500.0,0.00020783,2]
[378944869,1755076239886,-500.0,0.00020783,2]
[378944870,1755076239895,-500.0,0.00020783,2]
[378944871,1755076239905,-500.0,0.00020783,2]
[378944872,1755076239914,-500.0,0.00020783,2]
[378944873,1755076239924,-500.0,0.00020783,2]
[378944874,1755076239933,-436.3815038,0.00020783,2]
[378944875,1755076239945,-63.6184962,0.00020783,2]
[378944876,1755076239957,-538.97560441,0.00020783,2]
[378944877,1755076239966,-500.0,0.00020783,2]
[378944878,1755076239976,-500.0,0.00020783,2]
[378944879,1755076239985,-631.30777753,0.00020783,2]
[378944880,1755076239995,-500.0,0.00020783,2]
[378944881,1755076240004,-500.0,0.00020783,2]
[378944882,1755076240013,-500.0,0.00020783,2]
[378944883,1755076240022,-500.0,0.00020783,2]
[378944884,1755076240034,-500.0,0.00020783,2]
[378944885,1755076240043,-275.16154826,0.00020783,2]
[378945215,1755076243887,-160.0,0.00020772,2]
[378945217,1755076243896,-160.0,0.00020772,2]
[378945219,1755076243906,-224.83845174,0.00020783,2]
[378945221,1755076243915,-500.0,0.00020783,2]
[378945223,1755076243924,-500.0,0.00020783,2]
[378945225,1755076243934,-167.99616608,0.00020783,2]
[378945984,1755076305928,155.108358,0.0002254,30]
[378945985,1755076306329,155.108358,0.00022484,30]
[378945986,1755076307178,155.108358,0.00022428,30]
[378945987,1755076307500,155.108358,0.00022372,30]
[378945989,1755076440505,418.4544172,0.00022372,120]
[378945996,1755076808907,178.266525,0.00013699,2]
[378945999,1755076904059,155.108358,0.0002254,30]
[378946000,1755076904367,155.108358,0.00022484,30]
[378946001,1755076904695,155.108358,0.00022428,30]
[378946002,1755076905040,155.108358,0.00022372,30]
[378946157,1755077432569,-3681.01387078,0.00018239,2]
[378946159,1755077432578,-172.1845301,0.00018509,2]
[378946161,1755077432589,-167.38258807,0.00018609,2]
[378946162,1755077432599,-300.0,0.00018791,2]
[378946164,1755077432610,-1200.0,0.00018791,2]
[378946166,1755077432619,-300.0,0.00018791,2]
[378946168,1755077432629,-1200.0,0.00018792,2]
[378946170,1755077432638,-200.0,0.00018792,10]
[378946171,1755077432648,-200.0,0.00018792,10]
[378946173,1755077432657,-200.0,0.00018792,10]
[378946175,1755077432667,-300.0,0.00018792,2]
[378946177,1755077432677,-300.0,0.00018792,2]
[378946179,1755077432687,-300.0,0.00018792,2]
[378946180,1755077432697,-300.0,0.00018792,2]
[378946193,1755077432901,-300.0,0.00018792,2]
[378946194,1755077432911,-32416.25363994,0.00018799,2]
[378946195,1755077432920,-1422.16273153,0.00018899,2]
[378946196,1755077432929,-200.0,0.00019169,20]
[378946197,1755077432938,-200.0,0.00019169,20]
[378946198,1755077432948,-200.0,0.00019169,20]
[378946199,1755077432957,-200.0,0.00019169,20]
[378946200,1755077432967,-200.0,0.00019169,20]
[378946201,1755077432976,-200.0,0.00019169,20]
[378946202,1755077432986,-308.0,0.000192,2]
[378946203,1755077432995,-154.611238,0.0001965,2]
[378946204,1755077433004,-201.15006525,0.0001974,2]
[378946205,1755077433013,-500.0,0.0001974,2]
[378946206,1755077433023,-366.64,0.00019741,3]
[378946207,1755077433033,-183.32,0.00019741,3]
[378946208,1755077433042,-550.01,0.00019741,3]
[378946209,1755077433052,-1466.57,0.00019742,3]
[378946210,1755077433062,-733.29,0.00019742,3]
[378946211,1755077433072,-387.41866758,0.00019749,2]
[378946212,1755077433082,-500.0,0.0001975,2]
[378946213,1755077433093,-500.0,0.0001975,2]
[378946214,1755077433106,-500.0,0.0001975,2]
[378946215,1755077433117,-500.0,0.0001975,2]
[378946216,1755077433128,-500.0,0.0001975,2]
[378946217,1755077433138,-500.0,0.0001975,2]
[378946218,1755077433148,-500.0,0.0001975,2]
[378946219,1755077433159,-500.0,0.0001975,2]
[378946220,1755077433169,-500.0,0.0001975,2]
[378946221,1755077433179,-500.0,0.0001975,2]
[378946222,1755077433189,-500.0,0.0001975,2]
[378946223,1755077433199,-500.0,0.0001975,2]
[378946224,1755077433209,-500.0,0.0001975,2]
[378946225,1755077433218,-500.0,0.0001975,2]
[378946226,1755077433228,-500.0,0.0001975,2]
[378946227,1755077433238,-500.0,0.0001975,2]
[378946228,1755077433248,-500.0,0.0001975,2]
[378946229,1755077433258,-500.0,0.0001975,2]
[378946230,1755077433268,-359.71584761,0.0001975,2]
[378946231,1755077433278,-500.0,0.0001975,2]
[378946232,1755077433288,-500.0,0.0001975,2]
[378946233,1755077433298,-216.56684794,0.0001975,2]
[378946234,1755077433307,-500.0,0.0001975,2]
[378946235,1755077433316,-500.0,0.0001975,2]
[378946236,1755077433326,-500.0,0.0001975,2]
[378946237,1755077433336,-500.0,0.0001975,2]
[378946238,1755077433345,-500.0,0.0001975,2]
[378946239,1755077433355,-500.0,0.0001975,2]
[378946240,1755077433365,-500.0,0.0001975,2]
[378946241,1755077433374,-500.0,0.0001975,2]
[378946242,1755077433384,-526.55332975,0.0001975,2]
[378946243,1755077433394,-500.0,0.0001975,2]
[378946244,1755077433404,-500.0,0.0001975,2]
[378946245,1755077433414,-447.47435998,0.0001975,2]
[378946246,1755077433424,-500.0,0.0001975,2]
[378946247,1755077433435,-500.0,0.0001975,2]
[378946248,1755077433446,-500.0,0.0001975,2]
[378946249,1755077433456,-500.0,0.0001975,2]
[378946250,1755077433467,-500.0,0.0001975,2]
[378946251,1755077433478,-450.25236131,0.0001975,2]
[378946252,1755077433488,-500.0,0.0001975,2]
[378946253,1755077433499,-500.0,0.0001975,2]
[378946254,1755077433509,-500.0,0.0001975,2]
[378946255,1755077433520,-500.0,0.0001975,2]
[378946256,1755077433530,-500.0,0.0001975,2]
[378946257,1755077433540,-500.0,0.0001975,2]
[378946258,1755077433550,-500.0,0.0001975,2]
[378946259,1755077433565,-500.0,0.0001975,2]
[378946260,1755077433575,-500.0,0.0001975,2]
[378946261,1755077433584,-500.0,0.0001975,2]
[378946262,1755077433594,-500.0,0.0001975,2]
[378946263,1755077433605,-500.0,0.0001975,2]
[378946264,1755077433614,-500.0,0.0001975,2]
[378946265,1755077433624,-500.0,0.0001975,2]
[378946266,1755077433635,-500.0,0.0001975,2]
[378946267,1755077433645,-500.0,0.0001975,2]
[378946268,1755077433656,-500.0,0.0001975,2]
[378946269,1755077433666,-500.0,0.0001975,2]
[378946270,1755077433676,-500.0,0.0001975,2]
[378946271,1755077433686,-500.0,0.0001975,2]
[378946272,1755077433696,-500.0,0.0001975,2]
[378946273,1755077433706,-500.0,0.0001975,2]
[378946274,1755077433716,-500.0,0.0001975,2]
[378946275,1755077433725,-442.60784155,0.0001975,2]
[378946276,1755077433736,-641.7766707,0.0001975,2]
[378946277,1755077433746,-500.0,0.0001975,2]
[378946278,1755077433756,-500.0,0.0001975,2]
[378946279,1755077433766,-500.0,0.0001975,2]
[378946280,1755077433781,-500.0,0.0001975,2]
[378946281,1755077433797,-500.0,0.0001975,2]
[378946282,1755077433807,-500.0,0.0001975,2]
[378946283,1755077433817,-500.0,0.0001975,2]
[378946284,1755077433826,-500.0,0.0001975,2]
[378946285,1755077433836,-500.0,0.0001975,2]
[378946286,1755077433845,-500.0,0.0001975,2]
[378946287,1755077433856,-500.0,0.0001975,2]
[378946288,1755077433866,-500.0,0.0001975,2]
[378946289,1755077433875,-500.0,0.0001975,2]
[378946290,1755077433885,-500.0,0.0001975,2]
[378946291,1755077433896,-500.0,0.0001975,2]
[378946292,1755077433906,-471.18674716,0.0001975,2]
[378946293,1755077433915,-500.0,0.0001975,2]
[378946294,1755077433926,-500.0,0.0001975,2]
[378946295,1755077433937,-500.0,0.0001975,2]
[378946296,1755077433947,-500.0,0.0001975,2]
[378946297,1755077433957,-500.0,0.0001975,2]
[378946298,1755077433967,-500.0,0.0001975,2]
[378946299,1755077433977,-500.0,0.0001975,2]
[378946300,1755077433987,-500.0,0.0001975,2]
[378946301,1755077433997,-500.0,0.0001975,2]
[378946302,1755077434007,-500.0,0.0001975,2]
[378946303,1755077434018,-500.0,0.0001975,2]
[378946304,1755077434028,-500.0,0.0001975,2]
[378946305,1755077434039,-500.0,0.0001975,2]
[378946306,1755077434050,-500.0,0.0001975,2]
[378946307,1755077434060,-500.0,0.0001975,2]
[378946308,1755077434070,-500.0,0.0001975,2]
[378946309,1755077434080,-500.0,0.0001975,2]
[378946310,1755077434090,-500.0,0.0001975,2]
[378946311,1755077434100,-500.0,0.0001975,2]
[378946312,1755077434111,-500.0,0.0001975,2]
[378946313,1755077434121,-500.0,0.0001975,2]
[378946314,1755077434131,-500.0,0.0001975,2]
[378946315,1755077434140,-500.0,0.0001975,2]
[378946316,1755077434150,-500.0,0.0001975,2]
[378946317,1755077434160,-500.0,0.0001975,2]
[378946318,1755077434170,-500.0,0.0001975,2]
[378946319,1755077434181,-500.0,0.0001975,2]
[378946320,1755077434191,-500.0,0.0001975,2]
[378946321,1755077434201,-500.0,0.0001975,2]
[378946322,1755077434211,-500.0,0.0001975,2]
[378946323,1755077434221,-500.0,0.0001975,2]
[378946324,1755077434231,-500.0,0.0001975,2]
[378946325,1755077434241,-500.0,0.0001975,2]
[378946326,1755077434251,-500.0,0.0001975,2]
[378946327,1755077434261,-500.0,0.0001975,2]
[378946328,1755077434271,-500.0,0.0001975,2]
[378946329,1755077434280,-500.0,0.0001975,2]
[378946330,1755077434290,-395.06757528,0.0001975,2]
[378946331,1755077434300,-500.0,0.0001975,2]
[378946332,1755077434310,-500.0,0.0001975,2]
[378946333,1755077434320,-419.28765386,0.0001975,2]
[378946334,1755077434330,-500.0,0.0001975,2]
[378946335,1755077434339,-500.0,0.0001975,2]
[378946336,1755077434349,-468.50360838,0.0001975,2]
[378946337,1755077434359,-500.0,0.0001975,2]
[378946338,1755077434368,-500.0,0.0001975,2]
[378946339,1755077434378,-500.0,0.0001975,2]
[378946340,1755077434388,-249.20813048,0.0001975,2]
[378946341,1755077434397,-502.33277285,0.0001975,2]
[378946342,1755077434407,-502.33277285,0.0001975,2]
[378946343,1755077434416,-502.33277285,0.0001975,2]
[378946344,1755077434426,-502.33277285,0.0001975,2]
[378946345,1755077434435,-502.33277285,0.0001975,2]
[378946346,1755077434445,-502.33277285,0.0001975,2]
[378946347,1755077434455,-502.33277285,0.0001975,2]
[378946348,1755077434464,-502.33277285,0.0001975,2]
[378946349,1755077434473,-502.33277285,0.0001975,2]
[378946350,1755077434482,-502.33277285,0.0001975,2]
[378946351,1755077434491,-502.33277285,0.0001975,2]
[378946352,1755077434502,-502.33277285,0.0001975,2]
[378946353,1755077434511,-502.33277285,0.0001975,2]
[378946354,1755077434521,-502.33277285,0.0001975,2]
[378946355,1755077434530,-502.33277285,0.0001975,2]
[378946356,1755077434541,-502.33277285,0.0001975,2]
[378946357,1755077434551,-502.33277285,0.0001975,2]
[378946358,1755077434565,-502.33277285,0.0001975,2]
[378946359,1755077434574,-502.33277285,0.0001975,2]
[378946360,1755077434583,-502.33277285,0.0001975,2]
[378946361,1755077434593,-502.33277285,0.0001975,2]
[378946362,1755077434602,-502.33277285,0.0001975,2]
[378946363,1755077434611,-932.69473663,0.0001975,2]
[378946364,1755077434621,-502.33277285,0.0001975,2]
[378946365,1755077434631,-502.33277285,0.0001975,2]